Workbook

Sheet 2月份
A1: 陆 丰 市 2022 年 2 月 财 政 预 算 支 出 完 成 情 况 表
A2: 2022-02-28 | O2: 单位：万元
B3: 年 初 | C3: 年度预算计划 | F3: 累计 | G3: 占年 | H3: 上年 | I3: 比上年 | J3: 比上年 | K3: 本月 | L3: 上年 | M3: 比上年 | N3: 比上年
A4: 支 出 项 目 | B4: 预 算 | F4: 完成 | G4: 预算 | H4: 同期 | I4: 同期增 | J4: 同期增 | K4: 完成 | L4: 同月 | M4: 同月增 | N4: 同月增 | O4: 备 注
B5: 数 | C5: 上年结转 | D5: 上级补助 | E5: 本级安排 | F5: 数 | G5: % | H5: 完成 | I5: 减额 | J5: (减)% | K5: 数 | L5: 完成 | M5: 减额 | N5: (减)%
A6: 201、一般公共服务支出 | D6: 222.22 | E6: 51,911.00 | F6: 19,753 | H6: 14,055 | I6: =F6-H6 -> 5,698 | J6: =I6/H6*100 -> 40.54 | K6: 2,469 | L6: 7,954 | M6: =K6-L6 -> -5,485 | N6: =M6/L6*100 -> -68.96
A7: 203、国防支出 | H7: 110 | I7: =F7-H7 -> -110 | J7: =I7/H7*100 -> -100.00
A8: 204、公共安全支出 | D8: 15.00 | E8: 45,818.00 | F8: 6,505 | H8: 11,844 | I8: =F8-H8 -> -5,339 | J8: =I8/H8*100 -> -45.08 | K8: 1,560 | L8: 7,580 | M8: =K8-L8 -> -6,020 | N8: =M8/L8*100 -> -79.42
A9: 205、教育支出 | D9: 3,330.76 | E9: 208,849.00 | F9: 25,583 | H9: 61,804 | I9: =F9-H9 -> -36,221 | J9: =I9/H9*100 -> -58.61 | K9: 4,765 | L9: 42,165 | M9: =K9-L9 -> -37,400 | N9: =M9/L9*100 -> -88.70
A10: 206、科学技术支出 | E10: 2,354.00 | F10: 108 | H10: 2,182 | I10: =F10-H10 -> -2,074 | J10: =I10/H10*100 -> -95.05 | K10: 3 | L10: 1,048 | M10: =K10-L10 -> -1,045 | N10: =M10/L10*100 -> -99.71
A11: 207、文化体育与传媒支出 | D11: 231.50 | E11: 14,952.00 | F11: 868 | H11: 2,883 | I11: =F11-H11 -> -2,015 | J11: =I11/H11*100 -> -69.89 | K11: 348 | L11: 982 | M11: =K11-L11 -> -634 | N11: =M11/L11*100 -> -64.56
A12: 208、社会保障和就业支出 | D12: 2,042.20 | E12: 120,228.00 | F12: 49,847 | H12: 17,079 | I12: =F12-H12 -> 32,768 | J12: =I12/H12*100 -> 191.86 | K12: 42,270 | L12: 10,926 | M12: =K12-L12 -> 31,344 | N12: =M12/L12*100 -> 286.88
A13: 210、卫生健康支出 | D13: 2,158.11 | E13: 157,329.00 | F13: 77,236 | H13: 62,518 | I13: =F13-H13 -> 14,718 | J13: =I13/H13*100 -> 23.54 | K13: 13,382 | L13: 7,897 | M13: =K13-L13 -> 5,485 | N13: =M13/L13*100 -> 69.46
A14: 211、节能环保支出 | E14: 6,363.00 | F14: 483 | H14: 1,055 | I14: =F14-H14 -> -572 | J14: =I14/H14*100 -> -54.22 | K14: 201 | L14: 459 | M14: =K14-L14 -> -258 | N14: =M14/L14*100 -> -56.21
A15: 212、城乡社区支出 | D15: 777.88 | E15: 33,031.00 | F15: 5,672 | H15: 5,966 | I15: =F15-H15 -> -294 | J15: =I15/H15*100 -> -4.93 | K15: 2,335 | L15: 2,924 | M15: =K15-L15 -> -589 | N15: =M15/L15*100 -> -20.14
A16: 213、农林水支出 | D16: 23,226.40 | E16: 128,268.00 | F16: 12,969 | H16: 23,183 | I16: =F16-H16 -> -10,214 | J16: =I16/H16*100 -> -44.06 | K16: 6,037 | L16: 13,473 | M16: =K16-L16 -> -7,436 | N16: =M16/L16*100 -> -55.19
A17: 214、交通运输支出 | D17: 2,831.00 | E17: 24,936.00 | F17: 5,796 | H17: 7,043 | I17: =F17-H17 -> -1,247 | J17: =I17/H17*100 -> -17.71 | K17: 4,764 | L17: 3,579 | M17: =K17-L17 -> 1,185 | N17: =M17/L17*100 -> 33.11
A18: 215、资源勘探信息等支出 | E18: 430.00 | F18: 58 | H18: 115 | I18: =F18-H18 -> -57 | J18: =I18/H18*100 -> -49.57 | K18: 27 | L18: 90 | M18: =K18-L18 -> -63 | N18: =M18/L18*100 -> -70.00
A19: 216、商业服务业等支出 | E19: 796.00 | F19: 232 | H19: 338 | I19: =F19-H19 -> -106 | J19: =I19/H19*100 -> -31.36 | K19: 78 | L19: 291 | M19: =K19-L19 -> -213 | N19: =M19/L19*100 -> -73.20
A20: 217、金融支出 | E20: 185.00
A21: 220、自然资源海洋气象等支出 | E21: 6,653.00 | F21: 596 | H21: 2,471 | I21: =F21-H21 -> -1,875 | J21: =I21/H21*100 -> -75.88 | K21: 256 | L21: 1,576 | M21: =K21-L21 -> -1,320 | N21: =M21/L21*100 -> -83.76
A22: 221、住房保障支出 | D22: 447.25 | E22: 15,011.00 | F22: 1,919 | H22: 1,793 | I22: =F22-H22 -> 126 | J22: =I22/H22*100 -> 7.03 | K22: 946 | L22: 781 | M22: =K22-L22 -> 165 | N22: =M22/L22*100 -> 21.13
A23: 222、粮油物资储备支出 | E23: 4,882.00 | H23: 613 | I23: =F23-H23 -> -613 | J23: =I23/H23*100 -> -100.00 | L23: 603 | M23: =K23-L23 -> -603 | N23: =M23/L23*100 -> -100.00
A24: 224、灾害防治及应急管理支出 | D24: 210.00 | E24: 3,504.00 | F24: 515 | H24: 997 | I24: =F24-H24 -> -482 | J24: =I24/H24*100 -> -48.35 | K24: 165 | L24: 701 | M24: =K24-L24 -> -536 | N24: =M24/L24*100 -> -76.46
A25: 232、债务付息支出 | D25: 2010.55 | E25: 1,600.00 | F25: 464 | H25: 464 | K25: 437 | L25: 437
A26: 233、债务发行费用支出
A27: 229、其他支出 | E27: 42,880.00 | F27: 557 | H27: 1,318 | I27: =F27-H27 -> -761 | J27: =I27/H27*100 -> -57.74 | K27: 345 | L27: 1,012 | M27: =K27-L27 -> -667 | N27: =M27/L27*100 -> -65.91
A28: 一、一般公共预算支出合计 | C28: =SUM(C6:C27) -> 0 | D28: =SUM(D6:D27) -> 37,503 | E28: =SUM(E6:E27) -> 869,980 | F28: =SUM(F6:F27) -> 209,161 | H28: =SUM(H6:H27) -> 217,831 | I28: =F28-H28 -> -8,670 | J28: =I28/H28*100 -> -3.98 | K28: =SUM(K6:K27) -> 80,388 | L28: =SUM(L6:L27) -> 104,478 | M28: =K28-L28 -> -24,090 | N28: =M28/L28*100 -> -23.06
A29: 二、政府性基金预算支出 | D29: 121800 | E29: 192576 | F29: 113,823 | H29: 22,749 | I29: =F29-H29 -> 91,074 | J29: =I29/H29*100 -> 400.34 | K29: 23,978 | L29: 18,406 | M29: =K29-L29 -> 5,572 | N29: =M29/L29*100 -> 30.27
A30: 三、国有资本经营支出 | E30: 963 | F30: 24 | H30: 12 | I30: =F30-H30 -> 12 | J30: =I30/H30*100 -> 100.00 | K30: 23 | L30: 3 | M30: =K30-L30 -> 20 | N30: =M30/L30*100 -> 666.67
A31: 四、债务还本支出
A32: 支出合计 | C32: =C28+C29+C30 -> 0 | D32: =D28+D29+D30 -> 159,303 | E32: =E28+E29+E30 -> 1,063,519 | F32: =F28+F29+F30+F31 -> 323,008 | H32: =H28+H29+H30+H31 -> 240,592 | I32: =F32-H32 -> 82,416 | J32: =I32/H32*100 -> 34.26 | K32: =K28+K29+K30+K31 -> 104,389 | L32: =L28+L29+L30+L31 -> 122,887 | M32: =K32-L32 -> -18,498 | N32: =M32/L32*100 -> -15.05
A33: 注：2022年度预算草案还未通过人大决议，故本表没有反映年度预算数和占比数。

Sheet Sheet1

Sheet Sheet2

Sheet Sheet3
